{"text_format":"1","workbook":"xlsx","n_sheets":28,"sheets":["Title","Info","Co1","Co1B","Co2","Co3","Co4","Co5","Co6","Co7","Cr1","Cr2","Cr3","M1,2","M3,4","M5,6","M7","AMB","S1","S2","Score","LGCS","END","Graph","Sample","Survey","SrvyRes","2-test"],"not_rendered":{"charts":6,"images":3,"macros":1,"external_links":0,"defined_names":3,"comments":0,"pivot_tables":0},"unopened":[],"bounds":{"document_bytes":16777216,"sheet_cells":100000,"rows_first":2000,"rows_last":500,"rows_between":2000,"halvings":0,"cell_chars":16384,"cell_head_chars":4096},"cells_cut":0,"cells_raw":0,"read":"whole","date_system":"1900"}

{"sheet":"Title","index":0,"n_rows":43,"n_cols":4,"rows_kept":43,"cut":false,"hidden":false,"merged":[[35,3,35,5]]}
[]
[]
[]
[]
[]
[]
[]
[]
[]
[]
[]
[]
[]
[]
[]
[]
[]
[]
[]
[]
[]
[]
[]
[]
[]
[]
[]
[]
[]
[]
[]
[]
[]
["                Tools needed: Cartoon picture, timer, safety pin, flashlight(s), watch, ring, pen"]
[]
[null,null,null,"TRIAL VERSION ONLY"]
[]
[null,"User understands that this version is not intended to provide data to be  used for clinical "]
[null,"decision-making at this time. Also, that changes will not be made to the program "]
[null,"without author permission. "]
[]
[null,"Copies of the final scoresheet and graph will be stored in the same folder as the"]
[null,"program and should not contain protected information. "]

{"sheet":"Info","index":1,"n_rows":36,"n_cols":10,"rows_kept":36,"cut":false,"hidden":false,"merged":[[31,9,31,10],[30,9,30,10],[25,9,25,10],[0,1,1,2],[21,1,21,7],[30,1,30,7],[14,1,14,2],[16,1,16,2],[22,7,22,11],[28,7,28,11],[14,3,14,5]]}
[null,"Introduction for LATS:"]
[]
[]
[null,"This is a Tool whose principal purpose is to follow a patient through their hospitalization. This goal will be facilitated "]
[null,"with further development of the color graphic representations of the scores for multiple test administrations.  Also, "]
[null,"with adjustments to the final scoring, we can expect that the tool will accurately predict a variety of outcomes, namely, the "]
[null,"90 day modified Rankin and the 12 month Stroke Specific Quality of Life. The principal purpose of this phase of the research "]
[null,"is the qualitative assessment of this Tool for our practice, looking especially at ease of learning and ease of use.  The"]
[null,"secondary purpose of the research  is to validate the Tool as a measure of outcomes prediction.  Finally, the incorporation of "]
[null,"the tool in progress notes will be a measure of the utility of the Tool in the management of stroke patients."]
[null,"Key, now, are your thoughts which can be conveyed in the survey at the end. "]
[null," We thank you for your participation. . . let us proceed!"]
[]
[null,"Demographics:"]
[null," Your Name:"]
[]
[null,"Patient information  MRN:  ",null,null,"Fictionalize these demographics"]
[null,null,"Age:  "]
[null,null,"Sex(M or F):  "]
[]
[]
[null,"     If patient is able to participate in the standard LATS, Click Here:   "]
[]
[]
[null,"    If patient is unable to participate due to diminished LOC, Click Here:"]
[null,null,null,null,null,null,null,null,null,"Button2"]
[]
[]
[]
[null,null,null,null,null,null,null,null,"M"]
[null,"Can't decide? For guidance on scoring the severely impaired patient, click here -->"]
[null,null,null,null,null,null,null,null,null,"          Buttton 4"]
[]
[null,"Note: You must make a selection above in order to apply a Date/time stamp. If you are administering the standard LATS, after"]
[null,"the communications section, very experienced users may go directly to the score sheet and then click on \"GoTo End\"."]
[null,"The \"handedness\" and \"peripheral neuropathy\" answers can be entered directly on the score sheet. "]

{"sheet":"Co1","index":2,"n_rows":33,"n_cols":19,"rows_kept":33,"cut":false,"hidden":false,"merged":[[18,4,18,7],[21,1,21,2]]}
["Co1 ",null,null,null,"Receptive"]
[]
[null,"Instruction for the patient:"]
[null,null,null,null,null,null,null,null,null,null,null,null,null,null,null,null,null,null,"For Next button"]
[null,"       1. “Take your [R/L] index (pointer) finger and touch it to your [opposite] ear”",null,null,null,null,null,null,null,null,null,null,null,null,null,null,null,null,{"$f":"IF(ISNUMBER(Score!G4),Score!G4,-1)","v":-1}]
[null,"       2. ( “Okay, fine, now can you,”)  “Stick out your tongue”. "]
[null,null,null,null,null,null,null,null,null,null,null,null,null,null,null,null,null,null,"Instructions for Nexxt"]
[null,null,"Scoring:",null,null,null,null,null,null,null,null,null,null,null,null,null,null,null,{"$f":"IF(S5=--1,\"Complete This Item\",IF(S5=0,\"Click 'NEXT' for 'Fluency'\",IF(OR(S5=1,S5=2),\"Click 'NEXT' for 'Receptive2'\",\"\")))","v":""}]
[null,null,null,null,null,null,null,null,null,null,null,null,null,null,null,null,null,null,{"$f":"IF(S5=--1,\"Complete This Item\",IF(S5=0,\"Click 'NEXT' for 'Fluency'\",IF(OR(S5=1,S5=2),\"Click 'NEXT' for 'Receptive2'\",\"\")))","v":""}]
[]
[null,null,null,null,null,null,"=0"]
[null,null,null,null,null,null,"=1"]
[null,null,null,null,null,null,"=2"]
[]
[]
["             Explanation (which one was missed, &/or . .):"]
[]
[]
[null,null,null,null,{"$f":"IF(S5=-1,\"Complete This Item\",IF(S5=0,\"Click 'NEXT' for 'Fluency'\",IF(OR(S5=1,S5=2),\"Click 'NEXT' for 'Receptive2'\",\"\")))","v":"Complete This Item"}]
[]
[]
[null,"    To exit this trial"]
[]
[]
[]
[null,"Instructions for the examiner:"]
[]
[null,null,"1. Do not look at the object of the command, do not demonstrate . . . this is a verbal test. "]
[null,null,"2. Do not repeat the instruction, unless the patient fails to understand “index”, you may then "]
[null,null,null,"repeat saying “pointer” finger, or, name some other finger."]
[null,null,"3. When relevant, your instruction should designate a finger on the unimpaired side.  "]
[null,null,"4. There is no “partly correct”: each task must be performed correctly to count toward a “0”;"]
[null,null,null," partially correct or a total failure to understand, here, are equal."]

{"sheet":"Co1B","index":3,"n_rows":25,"n_cols":8,"rows_kept":25,"cut":false,"hidden":false,"merged":[[15,0,15,4],[18,9,18,10],[15,5,15,10]]}
["Co1B",null,null,null,"Receptive 2"]
[]
[null,"Instructions for the patient:"]
[]
[]
[null,null,null,"       1. “Make a fist with your hand”"]
[null,null,null,"       2. “Close your eyes”"]
[]
[null,null,null,"Scoring:"]
[]
[]
[null,null,null,null,null,null,null,"=0"]
[null,null,null,null,null,null,null,"=1"]
[null,null,null,null,null,null,null,"=2"]
[]
["Explanation (which one was missed, &/or . . . ):"]
[]
[]
[]
[]
[]
[]
[]
[null,null,"Instructions for the examiner: "]
[null,null,null," Again, without visual cues, though you may repeat these commands once."]

{"sheet":"Co2","index":4,"n_rows":31,"n_cols":16,"rows_kept":31,"cut":false,"hidden":false,"merged":[[20,0,20,4],[20,5,20,11],[25,10,25,11],[22,6,22,8]]}
["Co2",null,null,null,"Receptive - Mime"]
[]
[]
[null,"Instructions for the patient:",null,null,null,null,null,null,null,null,null,null,null,null,null,"Instrction Box"]
[null,null,null,null,null,null,null,null,null,null,null,null,null,null,null,{"$f":"IF(Score!P4=1,\"Complete This Item\",IF(OR(Score!P4=2,Score!P4=3,Score!P4=4),\"Click 'NEXT' for 'Fluency'\",\"\"))","v":"Complete This Item"}]
[null,null,"a. Demonstrate a fist and try to get the patient to imitate."]
[]
[null,null,"b.  Demonstrate \"close your eyes\" while pointing to your eyes"]
[null,null,null,"trying to get the patient to iimitate. "]
[]
[]
[]
[null,null,"Scoring:"]
[]
[null,null,null,null,null,null,"=0"]
[null,null,null,null,null,null,"=1"]
[null,null,null,null,null,null,"=2"]
[]
[]
[]
["    Explanation (which one was missed, &/or . . .):"]
[]
[null,null,null,null,null,null,{"$f":"P5","v":"Complete This Item"}]
[]
[]
[null,null,null,null,null,null,null,null,null,null,"NEXT"]
[]
[]
[null,null,"Instructions for the examiner:  (Performed if the score for Co1 + Co1B = 4)"]
[null,null,null,"Here, an appropriate  attempt is scored as correct, such as "]
[null,null,null,null,"blinking of their eyes or some flexion of their fingers."]

{"sheet":"Co3","index":5,"n_rows":52,"n_cols":19,"rows_kept":52,"cut":false,"hidden":false,"merged":[[0,5,0,6],[52,10,52,13],[51,11,51,12],[19,9,19,12],[25,6,25,9],[47,6,47,8],[50,3,50,5],[48,6,48,8]]}
["Co3",null,null,null,null,"Fluency"]
[]
[]
[null,"Instruction for the patient:"]
[null,null,null,"Please look at this picture. When I say “go” I want you to tell me as much as you can "]
[null,null,null,null,"about this picture in a short time . . . GO!"]
[]
[]
[]
[null,null,"Scoring:"]
[]
[null,null,null,null,null,null,"=0"]
[null,null,null,null,null,null,"=0.5"]
[null,null,null,null,null,null,"=1"]
[null,null,null,null,null,null,"=2",null,null,null,null,null,null,null,null,null,null,null,"For Next button"]
[null,null,null,null,null,null,"=3"]
[null,null,null,null,null,null,"=4",null,null,null,null,null,null,null,null,null,null,null,{"$f":"IF(ISNUMBER(Score!Q6),Score!Q6,-1)","v":-1}]
[null,null,null,null,null,null,"=5"]
[]
[null,null,null,null,null,null,null,null,null,"'Click' for examples of scoring"]
[]
[]
[null,null,null,"    Explanation, special circumstances:"]
[]
[]
[null,null,null,null,null,null,{"$f":"IF(S17=-1,\"Complete This Item\",IF(Score!Q6>1,\"'NEXT' will GoTo 'Naming'\",IF(AND(Score!Q6<2,K27=1),\"Telegraphic?  Click 'NEXT'\",IF(AND(Score!Q6<3,K27=3),\"'NEXT' Will GoTo 'Orientation'\",IF(AND(Score!Q6<3,K27=2),\"'NEXT' will GoTo 'Conduction'\",\"\")))))","v":"Complete This Item"}]
[null,null,null,null,null,null,null,null,null,null,1]
[]
[]
[]
[]
[null,"Instructions for the examiner:"]
[null,"Give the patient the cartoon, or hold it in front of them. "]
[null,null,"Start the timing when the first element is named, stop after 20”. Action verbs, adjectives, adverbs, nouns  "]
[null,null,null,"count as elements. Check the examples byu clicking the orange fill above. "]
[null,null,"           This testing may be repeated once because of exogenous impacts, e.g., a distraction"]
[null,null,null,"or a bout of coughing"]
[]
[]
[]
[]
[]
[]
[]
[]
[]
[]
[]
[null,null,null,null,null,null,"Complete this item"]
[]
[null,null,null,"Is speech +/- telegraphic?"]
[null,null,null,"(answer only if 12 or more elements artulated)",null,null,"Complete this item"]

{"sheet":"Co4","index":6,"n_rows":31,"n_cols":16,"rows_kept":31,"cut":false,"hidden":false,"merged":[[22,5,22,7],[24,1,24,4],[20,1,20,3],[29,11,29,12],[20,4,20,11]]}
["Co4",null,null,null,null,null,"Naming"]
[]
[]
[null,null,null,null,null,null,null,null,null,null,null,null,null,null,null,"Click Instructions"]
[null,"Instructions for the patient:",null,null,null,null,null,null,null,null,null,null,null,null,null,{"$f":"IF(Score!N7=1,\"Complete This Item\",IF(Score!N7>=2,\"Click 'NEXT' for 'Orientation'\"))","v":"Complete This Item"}]
[]
[null," “What is this?”  You will point to the actual objects (not illustrations). "]
[null,null,null,"1. Watch"]
[null,null,null,"2. Thumb"]
[null,null,null,"3. Pen"]
[null,null,null,"4. Ring"," (located on a finger -correct response is “ring” or “wedding band”, but not “band” alone)"]
[]
[null,null,null,null,null,"       Scoring:"]
[]
[null,null,null,null,null,null,null,null,null,"=0"]
[null,null,null,null,null,null,null,null,null,"=1"]
[null,null,null,null,null,null,null,null,null,"=2"]
[null,null,null,null,null,null,null,null,null,"=3"]
[]
[]
[null,"          Explanation, missed items:"]
[]
[null,null,null,null,null,{"$f":"P5","v":"Complete This Item"}]
[]
[]
[null,"Instructions for the examiner: (used only if Fluency score is >2 - fewer than 9 items identified)"]
[null,null,"In scoring, adjectives before the object name are not penalized. "]
[null,null," A smart-aleck who says something like “gold annular jewelry”, “carpal chronometer”, “pollicis”, etc.  "]
[null,null,null," should be asked, “what is it commonly called?”. However, such a person should have"]
[null,null,null,"skipped this section by good fluency performance. Has the apparent inconsistency"]
[null,null,null,"benn explained, e.g., persistent coughing impacting fluency?"]

{"sheet":"Co5","index":7,"n_rows":30,"n_cols":16,"rows_kept":30,"cut":false,"hidden":false,"merged":[[22,8,22,9],[15,1,15,2],[23,3,23,8],[18,3,18,5],[15,3,15,8]]}
["Co5",null,null,null,"Conduction"]
[]
[]
[null,"Instructions for the patient:",null,null,null,null,null,null,null,null,null,null,null,null,null,"Click instruct"]
[null,null,null,null,null,null,null,null,null,null,null,null,null,null,null,{"$f":"IF(Score!N8=1,\"Complete This Item\",IF(Score!N8>=2,\"Click 'Next' for 'Orientation'\"))","v":"Complete This Item"}]
[null,null,"\"Repeat after me,  \"No ifs, ands, or buts\""]
[]
[]
[null,null,"Scoring:"]
[]
[null,null,null,null,null,"=0"]
[null,null,null,null,null,"=1"]
[]
[]
[]
[null,"Elective explanation:"]
[]
[]
[null,null,null,{"$f":"P5","v":"Complete This Item"}]
[]
[]
[]
[null,null,null,null,null,null,null,null,"NEXT"]
[]
[]
[null,"Instructions for the examiner:"]
[null,null,"1. This is performed only if the speech in the fluency test seems to be "]
[null,null,null,"telegraphic, that is, lacking in prepositions and articles."]
[null,null,"2. You may repeat the phrases once, if necessary."]
[null,null,"3. Missing \"s\" does not count as an error"]

{"sheet":"Co6","index":8,"n_rows":36,"n_cols":7,"rows_kept":36,"cut":false,"hidden":false,"merged":[[19,0,19,2],[26,3,26,9],[25,9,25,10],[19,3,19,9]]}
["Co6",null,null,null,"Orientation"]
[]
[]
[null,"Instructions for the patient:"]
[]
[null,"Ask: ","1. \"What month is this?\""]
[null,null,"2. \"What year is this?\""]
[null,null,"3. \"How old are you?\""]
[]
[]
[]
[null,null,"Scoring:"]
[]
[null,null,null,null,null,null,"=0"]
[null,null,null,null,null,null,"=1"]
[null,null,null,null,null,null,"=2"]
[null,null,null,null,null,null,"=3"]
[]
[]
["Explanation (desirable):"]
[null,null,null,"For a score of 1 or 2, describe which are missed"]
[null,null,null,"If unable to speak, the patient may indicate their answer given choices, note this "]
[null,null,null,null,"the explanation."]
[]
[]
[]
[]
[]
[]
[]
[]
[null,"Instructions for the examiner:"]
[null,null,"1. Remind the spouse, or whoever might be in the room, not to answer the questions for them,  "]
[null,null,null,"and have the patient look away from a posted calendar."]
[null,null,"2. There is no partial credit for a close answer, however the patient may change their answer "]
[null,null,null,"one time for each item as long as they are not prompted. "]

{"sheet":"Co7","index":9,"n_rows":34,"n_cols":14,"rows_kept":34,"cut":false,"hidden":false,"merged":[[22,1,22,2],[35,3,35,7],[23,9,23,10],[18,3,18,9],[34,3,34,7]]}
["Co7",null,null,null,"Dysarthria"]
[]
[]
[null,"Instructions for the patient:"]
[]
[null,null,"Repeat after me,     \"the ripe taste of cheese improves with age\""]
[]
[]
[]
[null,null,"Scoring:"]
[]
[null,null,null,null,null,null,null,"=0"]
[null,null,null,null,null,null,null,"=0.5"]
[null,null,null,null,null,null,null,"=1",null,null,null,null,null,"not scored"]
[null,null,null,null,null,null,null,"=2",null,null,null,null,null,"Speech is distinct, or no speech"]
[null,null,null,null,null,null,null,null,null,null,null,null,null,"All words understood, but dysarthric"]
[null,null,null,null,null,null,null,null,null,null,null,null,null,"1 word not understood"]
[null,null,null,null,null,null,null,null,null,null,null,null,null,"2 or more words not understood"]
["           Explanation (optional):"]
[null,null,null,"If one  or two words, specify them here, or note the total number not understood "]
[]
[]
[]
[]
[]
[]
[]
[]
[]
[null,"Instructions for the examiner:"]
[null,1,"The sentence to be repeated may be broken into two parts, if necessary."]
[null,2,"Repetition by the examiner is permitted. "]
[null,3,"If the patient is unable to produce speech, the score is \"0\"."]
[null,4,"A word that would not have been understood if spoken individually is dysarthric"]

{"sheet":"Cr1","index":10,"n_rows":39,"n_cols":12,"rows_kept":39,"cut":false,"hidden":false,"merged":[[36,7,36,9],[23,11,23,12],[18,3,18,11]]}
["Cr1",null,null,null,"Visual Fields"]
[]
[]
[null,"Instructions for the patient:"]
[]
[null,"           \"Count the number of fingers I hold up\" or, \"tell me when a finger wiggles\" or, \"point to the light when it goes on\" "]
[]
[]
[null,null,"Scoring:"]
[]
[null,null,null,null,null,null,"=0"]
[null,null,null,null,null,null,"=1"]
[null,null,null,null,null,null,"=1.5"]
[null,null,null,null,null,null,"=2"]
[null,null,null,null,null,null,"=3"]
[null,null,null,null,null,null,"=4"]
[]
[]
[null,"            Explanation:"]
[null,null,null,"Note location of defect and whether defect is dense or partial"]
[]
[]
[]
[]
[]
[null,"Instructions for the examiner:"]
[null,"1. Start by simultaneously holding 1 or 2 fingers, a different number on either side, in each quadrant with both "]
[null,null,"their eyes open and ask the patient “how many fingers”.  If there are no abnormalities, test for "]
[null,null,"extinction as R, then L, then both fields. If there is still no abnormality then score a \"0\" for this item."]
[null,"2. If there is a field defect, retest with each eye individually to confirm. "]
[null,"3. If a defect is limited to a quadrant, test for extinction; L intact quadrant, then R intact quadrant, then simultaneous. "]
[null,"4. If the patient is unable to count fingers, you may have to command \"point to the finger that wiggles\", or \"say "]
[null,null,"now\" when it wiggles.  Some patients will just look at the wiggling finger, which indicates that field/quadrant is intact."]
[null,"5. If, usually in the dysphasic or poorly responsive patient, they still cannot perform, you may have to use flashlights to"]
[null,null,"see if they look at the light when it goes on. Blink to threat is an additional technique."]
[null,"6. Blindness in one eye does not impact the score, but should be noted. "]
[null,null,null,null,null,null,null,"      Additional tips, click here -->"]
[]
[null,null,null,null,null,null,null,null,null,null,null," "]

{"sheet":"Cr2","index":11,"n_rows":23,"n_cols":9,"rows_kept":23,"cut":false,"hidden":false,"merged":[[21,1,21,2],[21,3,21,10],[26,10,26,11]]}
["Cr2",null,null,null,null,"Gaze"]
[]
[null,"Instructions:"]
[null,"1. Observe the patient at rest, if their gaze is deviated, talk to them from the side opposite their gaze "]
[null,"and ask them to look at you. Then, have the patient follow your finger, or a light, from one side to the"]
[null,"other and back. If gaze remains fixed to one side, turn the head away from side of the deviation, "]
[null,"and ask the patient to keep looking at your finger or a light. Then slowly turn head toward the side of the "]
[null,"deviation. (If they do not look in one direction spontaneously, or when asked, and this maneuver"]
[null,"overcomes that deviation, this, then, is a gaze preference rather than gaze palsy to note in the explanation).  "]
[]
[null,"2. A fine or subtle “endpoint” nystagmus, or a bilateral \"endpoint\" nystagmus does not score. "]
[]
[null,"Scoring:"]
[]
[null,null,null,null,null,null,null,null,"=0"]
[null,null,null,null,null,null,null,null,"=1"]
[null,null,null,null,null,null,null,null,"=2"]
[null,null,null,null,null,null,null,null,"=3"]
[]
[]
[]
[null,"             Explanation:"]
[null,null,null,"Describe the eye movement disorder including direction/side"]

{"sheet":"Cr3","index":12,"n_rows":28,"n_cols":8,"rows_kept":28,"cut":false,"hidden":false,"merged":[[23,1,23,2],[22,3,22,9],[23,3,23,9],[27,9,27,10]]}
["Cr3",null,null,null,"Facial Motor"]
[]
[null,"Instructions for the examiner/patient:"]
[]
[null,null,"1. First note the face at rest"]
[]
[null,null,"2. Ask for a facial expression, “smile” first, then, since some people just can’t do that, "]
[null,null,null,"“show me your teeth”. The aphasic patient may be pinched on an arm to "]
[null,null,null,"elicit a grimace. Borderline asymmetry is scored as mild."]
[]
[null,null,"3. Ask them to raise ther brows, or, have them follow your finger, or other target, "]
[null,null,null,"upward to look toward the ceiling, without head movement, and"]
[null,null,null,"observe brow furrowing. "]
[]
[]
[null,"Scoring:"]
[]
[null,null,null,null,null,null,null,"=0"]
[null,null,null,null,null,null,null,"=0.5"]
[null,null,null,null,null,null,null,"=1"]
[null,null,null,null,null,null,null,"=2"]
[]
[]
[null,"              Explanation:"]
[null,null,null,null,"Including side impaired"]
[]
[]
[null,null," "]

{"sheet":"M1,2","index":13,"n_rows":39,"n_cols":12,"rows_kept":39,"cut":false,"hidden":false,"merged":[[38,9,38,11],[23,1,23,2],[26,2,26,11],[23,3,23,11],[25,3,25,11]]}
["M1,2",null,null,null,null,"Arm Strength"]
[]
[null,"Instructions for the patient:"]
[]
[null,"“Raise both of your arms in front of you with palms facing the ceiling and try to keep them there for 10 seconds.” "]
[null,"(you may demonstrate)"]
[]
[]
["           R arm scoring:",null,null,null,null,null,"            L arm scoring:"]
[]
[]
[]
[]
[]
[]
[]
[]
[]
[]
[]
[]
[null,null,{"$f":"IF(ISNUMBER(Score!G16),\"\",\"Score R arm strength\")","v":"Score R arm strength"},null,null,null,null,null,{"$f":"IF(ISNUMBER(Score!G18),\"\",\"Score L arm strength\")","v":"Score L arm strength"}]
[]
[null,"   Explanation R arm:"]
[null,null,null,"For example, \"tested in chair and patient inattentive at this time\""]
[null,"   Explanation L arm:"]
[]
[]
["   "]
[]
["     Instructions for the examiner:"]
[null,"1. Have patient extend both arms at the shoulders and supinated(palms up) for 10”, track the time silently, as “one thousand, two thousand . .” "]
[null,"2. If there is no downward drift then have the patient hold their arm(s) abducted or forward with elbows flexed and push down on one or both;"]
[null,"       if, for orthopedic reasons this this can’t be done, test the strength of elbow flexion. An asymmetry against resistance,  or a pronator drift, "]
[null,"       if not further impaired, scores 0 .5 for the weaker arm, the two (both weakness against resistance and pronator drift) will score a 1. A "]
[null,"       slowness to elevate one side compared to the other, if not due to pain, will also count as a score of 0.5. If an arm(s) drifts down, or drops down,"]
[null,"       that overrides the more subtle findings and  this item will be scored as such. ",null,null,null,null,null,null,null,null,null,"Help3"]
[null,"3.You may encouragingly raise one arm at a time for the dysphasic patient. In this case, an initial, corrected drop after raising"]
[null,"        an extremity is not counted as abnormal. ",null,null,null,null,null,null,null," Tips for motor, click here -->"]

{"sheet":"M3,4","index":14,"n_rows":31,"n_cols":11,"rows_kept":31,"cut":false,"hidden":false,"merged":[[19,1,19,2],[19,3,19,9],[22,3,22,9],[28,1,28,2],[21,8,21,10]]}
["M3,4",null,null,null,null,"Hand Strength"]
[]
[null,"     Instructions:"]
[null,null,"Have the patient grasp your index and middle fingers as forcefully as they can, test "]
[null,null,"simultaneously if possible. Pantomime if necessary. If the patient is structurally unable "]
[null,null,"to clench, or if it is painful, test finger abduction, comparing the two sides."]
[]
[]
[]
[null,"         R hand scoring:",null,null,null,null,"          L hand scoring:"]
[]
[]
[]
[null,null,null,null,null," =0",null,null,null,null," =0"]
[null,null,null,null,null," =1",null,null,null,null," =1"]
[null,null,null,null,null," =2",null,null,null,null," =2"]
[]
[null,null,{"$f":"IF(ISNUMBER(Score!G17),\"\",\"    Score R hand\")","v":"    Score R hand"},null,null,null,null,{"$f":"IF(ISNUMBER(Score!G19),\"\",\"    Score L hand\")","v":"    Score L hand"}]
[]
[null,"  Explanation R hand:"]
[]
[]
[null,"   Explanation L hand:"]
[]
[]
[]
[null,{"$f":"IF(NOT(OR(Score!E28=\"L\",Score!E28=\"R\", Score!E28=\"A\",Score!E28=\"l\",Score!E28=\"r\",Score!E28=\"a\")),\"Dominant hand to be entered, cite the handedness prior to stroke(s)\",\"Handedness now entered - no further entry below\")","v":"Dominant hand to be entered, cite the handedness prior to stroke(s)"}]
[]
[null,"Dominant hand"]
[]
[null,null,null,"(If dominant arm+hand score >2 adds 1 point to adjusted LATS)"]

{"sheet":"M5,6","index":15,"n_rows":39,"n_cols":12,"rows_kept":39,"cut":false,"hidden":false,"merged":[[25,10,25,11],[21,1,21,2],[23,1,23,2],[38,8,38,10],[23,3,23,11]]}
["M5,6",null,null,null,null,"    Leg Strength"]
[]
[]
[null,"     Instructions for the patient:"]
[]
[null,null," “Lift your [L/R] leg part way up and keep it there, without moving, for 5 seconds.”"]
[]
[]
["            R leg scoring:",null,null,null,null,null,"          L leg scoring:"]
[]
[]
[null,null,null,null,null,"=0  ",null,null,null,null,null,"=0"]
[null,null,null,null,null," =0.5",null,null,null,null,null,"=0.5"]
[null,null,null,null,null,"=1  ",null,null,null,null,null,"=1"]
[null,null,null,null,null,"=2  ",null,null,null,null,null,"=2"]
[null,null,null,null,null,"=3  ",null,null,null,null,null,"=3"]
[null,null,null,null,null,"=4  ",null,null,null,null,null,"=4"]
[null,null,null,null,null,"=5  ",null,null,null,null,null,"=5"]
[]
[null,null,{"$f":"IF(ISNUMBER(Score!G20),\"\",\"Score R leg\")","v":"Score R leg"},null,null,null,null,null,{"$f":"IF(ISNUMBER(Score!G21),\"\",\"Score L leg\")","v":"Score L leg"}]
[]
[null,"Explanation for R leg:"]
[null,null,null,null,"Also, note if ankle testing is scored, and why"]
[null,"Explanation for L leg:"]
[null,null,null,null,"Also, note if ankle testing is scored, and why"]
[]
[]
[]
[]
[]
["     Instructions for the examiner:"]
[null,"1. Have patient lift their leg above the bed about 30 degrees with the instruction to maintain that for 5”, "]
[null,"track the time silently. Then, if no drift, push down on either leg to appreciate a difference.  For the"]
[null,"the dysphasic patient, you may raise their leg and indicate the instruction; an initial, corrected drop "]
[null,"drop does not count as abnormal. If there is an orthopedic impairment of hip flexion, test ankle dorsiflexion."]
[]
[null,"2. Ankle dorsiflexion scoring: Full strength against resistance =0, Full motion but slightly weaker than other side=1, "]
[null,"weak, but cannot be pushed down with 1 finger =2, can be pushed down with 1 finger=3, can only wiggle ankle = 4,"]
[null,"little or no movement = 5. ",null,null,null,null,null,null,"          Tips for legs, click here -->"]

{"sheet":"M7","index":16,"n_rows":34,"n_cols":6,"rows_kept":34,"cut":false,"hidden":false,"merged":[[19,1,19,2],[23,9,23,10],[18,3,18,8],[19,3,19,9]]}
["M7",null,null,null,"Coordination"]
[]
[]
[null,"Instructions for the patient:"]
[]
[null,null,"“Take the tip of [this] finger and touch it to the tip of your nose”. "]
[]
[null,null,"“Place your heel on top of your knee, and run it down the front of "]
[null,null,null,"your leg” "]
[]
[]
[null,"Scoring:"]
[]
[]
[null,null,null,null,null,"=0"]
[null,null,null,null,null,"=1"]
[null,null,null,null,null,"=2"]
[]
[]
[null,"              Explanation:"]
[null,null,null,"Note which limbs are impaired"]
[]
[]
[]
[]
[]
[]
[null,"Instructions for the examiner:"]
[null,null,"1. If there is weakness in a limb with a motor score >2, ataxia cannot be scored "]
[null,null," for that limb. If there is mild weakness, the ataxia should be very pronounced in"]
[null,null,"order to be scored. Perform the testing for each limb with a motor score <2."]
[]
[null,null,"2. Do your best to score, even if, for example, arthritis limits limb motion. However, "]
[null,null,"if the limb is nearly immobile for a non-neurologic reason, do not score that limb for ataxia."]

{"sheet":"AMB","index":17,"n_rows":23,"n_cols":12,"rows_kept":23,"cut":false,"hidden":false,"merged":[[22,1,22,2],[22,3,22,9],[21,9,21,12]]}
["AMB",null,null,null,"Ambulation"]
[]
[null,"Instructions for the examiner:"]
[]
[null,"Complete this item when the information is available from  "]
[null,"your observations or from a PT note. ,otherwise click on \"NEXT\""]
[]
[null,"Scoring:"]
[null,null,null,null,null,null,null,null,null,null,1,{"$f":"IF(K9=\"\",\"\",IF(K9=1,\"\",IF(K9=2,0,IF(K9=3,0.5,IF(K9=4,1,IF(K9=5,2,IF(K9=6,2.5,IF(K9=7,3,IF(K9=8,3.5,IF(K9=9,4,IF(K9=10,4.5,IF(K9=11,5,IF(K9=12,\"\",IF(AND(K9=2,Score!G27>0),0.2,IF(AND(K9=2,Score!G27=0),\"\",\"\")))))))))))))))","v":""}]
[]
[null,null,null,null,null,null,null,null,null,"=0"]
[null,null,null,null,null,null,null,null,null,"=0.5"]
[null,null,null,null,null,null,null,null,null,"=1"]
[null,null,null,null,null,null,null,null,null,"=2"]
[null,null,null,null,null,null,null,null,null,"=2.5"]
[null,null,null,null,null,null,null,null,null,"=3"]
[null,null,null,null,null,null,null,null,null,"=3.5"]
[null,null,null,null,null,null,null,null,null,"=4"]
[null,null,null,null,null,null,null,null,null,"=4.5"]
[null,null,null,null,null,null,null,null,null,"=5"]
[null,"              "]
[]
[null,"              Explanation:"]

{"sheet":"S1","index":18,"n_rows":36,"n_cols":10,"rows_kept":36,"cut":false,"hidden":false,"merged":[[24,1,24,2],[27,3,27,8],[30,11,30,12],[35,5,35,9]]}
["S1",null,null,null,null,"Light Touch"]
[]
[null,"Instructions:"]
[null,null,"First exam or possibly new impairment: "]
[null,null,null,"Touch both sides of the face, both forearms, both thighs. In each instance, ask the patient"]
[null,null,null,"if they are the same. If there is no impairment, test for extinction. "]
[]
[null,null,"Patients with prior sensory testing:"]
[null,null,null,"If the prior examination had shown normal sensation (touch and sharp), ask the patient"]
[null,null,null,"if there is any new numbness. If \"no\" still touch both arms to confirm normal touch"]
[null,null,null,"sensation, and score each of the two sensory items as \"0\" without further testing. "]
[]
[null,null,"Extinction","Test for extinction only at those sites demonstrating apparently normal bilateral sensation to touch."]
[null,null,null,"With the patient’s eyes closed, first touch the left, then the right, then both forearms, asking them"]
[null,null,null,"to tell you where you touch them. "]
[]
[null,"Scoring:"]
[]
[]
[null,null,null,null,null,null,null,null,null,"=0"]
[null,null,null,null,null,null,null,null,null,"=0.5"]
[null,null,null,null,null,null,null,null,null,"=1"]
[null,null,null,null,null,null,null,null,null,"=2"]
[]
[null,"               Explanation:"]
[]
[]
[]
[]
[]
[]
[]
[]
[]
[]
[null,null,null,null,null,"     Tips for sensory in the severely impaired, click here-->"]

{"sheet":"S2","index":19,"n_rows":39,"n_cols":7,"rows_kept":39,"cut":false,"hidden":false,"merged":[[38,5,38,9],[7,3,7,6],[16,1,16,2],[37,14,37,15],[16,3,16,9],[24,7,24,10],[27,7,27,10]]}
["S2",null,null,null,"Sharp Sensation"]
[]
[null,"Instructions for the patient:"]
[]
[null,null,null,"“If this is a dollar’s worth of sharpness, how much is this?”"]
[]
[]
[null,null,"Scoring:","Score the greatest loss not due to a local injury or peripheral neuropathy"]
[]
[]
[]
[null,null,null,null,null,null,"=0"]
[null,null,null,null,null,null,"=0.5"]
[null,null,null,null,null,null,"=1"]
[null,null,null,null,null,null,"=2"]
[]
[null,"              Explanation:"]
[null,null,null,"Include which limb/side is most affected, note if possible bilateral loss"]
[]
[]
[]
[null,"Peripheral Neuropathy:"]
[null,"Does the patient have bilateral foot numbness? (75% or more loss, peripheral neuropathy):"]
[]
[]
[]
[]
[]
[]
[null,"Instructions for the examiner:"]
[null,"        1.Use a safety pin or straight pin, dispose in a “sharps” container when finished. First test one forearm, then"]
[null,"               the other, then the cheeks. If there is a difference, ask “if this is a dollar’s worth of sharpness, how much is this?”,"]
[null,"               the latter being the less sharp side. Note that a “75 cents” response equals a 25% loss. "]
[null,"       2. Then test the feet, and, more proximally on the lower extremities. If both feet are less than 25% of what they "]
[null,"              should be, this indicates a likely significant impairment from a peripheral neuropathy. If both feet are that numb,"]
[null,"              the sensory score still reflects more proximal sensation, with a separate notation of a peripheral neuropathy. "]
[null,"       3. Aside from bilateral distal extremity numbness, score the greatest loss among the 4 extremities and face. "]
[null,"      4. If pt is unable to respond, peripheral neuropathy is scored \"No\" (see Tips for sensory scoring)"]
[null,null,null,null,null,"     Tips for sensory in the severely impaired, click here-->"]

{"sheet":"Score","index":20,"n_rows":35,"n_cols":20,"rows_kept":35,"cut":false,"hidden":false,"merged":[[32,2,32,5],[29,3,29,5],[34,3,34,5],[0,5,0,6],[25,0,25,7],[28,2,28,5],[30,3,30,5],[31,2,31,5],[27,5,27,6],[30,0,30,1],[33,2,33,3],[27,2,27,3]]}
["MRN",{"$f":"IF((Info!D17=\"\"),\"\",Info!D17)","v":""},{"$f":"(\"Examiner: \") &IF((Info!D15=\"\"),\"\",Info!D15)","v":"Examiner: "},{"$f":"(\"AGE   \")&(IF((Info!D18=\"\"),\"\",Info!D18)&(\"    Sex   \")&(IF((Info!D19=\"\"),\"\",Info!D19)))","v":"AGE       Sex   "},null,"DateTime:",null,"08/30/20-16:49"]
[null,"Test","Instructions","Scoring","New","Old","Total","Explanations",null,null,null,null,null,"Button values"]
[null,null,null,"Communication ","Score = ",null,{"$f":"SUM(G4:G10)","v":0},null,"To End","Handling null for G32",null,null,null,"Co1","Co1B","Co2","Co3","Co1+1B","No communication"]
["Co1","   Receptive-verbal","Finger to opp ear, tongue protrusion           If not \"0\", fist, if not done, Close Eyes","1st two correct=0, 1 correct=1, 0 correct=2. If fist not done, add 1, If eyes not closed, add another 1. Max score =4",{"$f":"+R4","v":""},null,{"$f":"IF(OR(ISNUMBER(E4),(ISNUMBER(F4))),E4+F4,\"\")","v":""},{"$f":"IF(('Co1'!F16&Co1B!F16=\"\"),\"\",\"1=\"&'Co1'!F16&\",  \"&\"1B=\"&Co1B!F16)","v":""},null,null,null,null,null,1,1,1,1,{"$f":"IF((AND(N4>1,O4<2)),N5,IF((AND(N4>1,O4<2)),N5,IF(AND(ISNUMBER(N5),ISNUMBER(O5)),N5+O5,\"\")))","v":""},{"$f":"G4","v":""}]
["Co2","   Receptive - mime","Performed if above score=4, Fist,          Close your eyes","Both correct=0, 1 correct=1, none correct =2. (a proper attempt is scored)",{"$f":"IF(ISNUMBER(P5),P5,\"\")","v":""},null,"",{"$f":"IF(('Co2'!F21=\"\"),\"\", 'Co2'!F21)","v":""},null,{"$f":"IF(ISBLANK(G5),0,G5)","v":""},null,null,null,{"$f":"IF($N$4=1,\"\",IF($N$4=2,0,IF($N$4=3,1,IF($N$4=4,2,\"\"))))","v":""},{"$f":"IF($O$4=1,\"\",IF($O$4=2,0,IF($O$4=3,1,IF($O$4=4,2,\"\"))))","v":""},{"$f":"IF($P$4=1,\"\",IF($P$4=2,0,IF($P$4=3,1,IF($P$4=4,2,\"\"))))","v":""},{"$f":"IF(ISNUMBER(N6),N6,\"\")","v":""},null,{"$f":"IF((ISNUMBER(Score!G5)),Score!G5,-1)","v":-1}]
["Co3","    Fluency","Cartoon","Elements in 20\":  0 =5,  1-3=4,    4-7=3,      8-11=2,  12-15=1,   16-20=0.5,    >20=0",{"$f":"IF(ISNUMBER(Q7),Q7,\"\")","v":""},null,"",{"$f":"IF(('Co3'!E23=\"\"),\"\", 'Co3'!E23)","v":""},null,{"$f":"IF((G6=\"\"),0,G6)","v":0},{"$f":"IF((G17=\"\"),0,G17)","v":0},null,null,{"$f":"+N5+O5","v":{"$error":"#VALUE!"}},1,null,{"$f":"IF(Q4=\"\",\"\",IF(Q4=1,\"\",IF(Q4=2,0,IF(Q4=3,0.5,IF(Q4>3,+Q4-3)))))","v":""},null,{"$f":"G6","v":""}]
["Co4","    Naming","Watch, thumb, pen, ring","All correct=0, 2-3 correct=1, 1correct=2, none correct, or mute=3",{"$f":"IF(ISNUMBER(O7),O7,\"\")","v":""},null,"",{"$f":"IF(('Co4'!E21=\"\"),\"\", 'Co4'!E21)","v":""},null,{"$f":"IF((G7=\"\"),0,G7)","v":0},{"$f":"IF((G19=\"\"),0,G19)","v":0},null,null,1,{"$f":"IF($N$7=1,\"\",IF($N$7>1,$N$7-2,\"\"))","v":""},null,{"$f":"IF(END!K3=2,6,IF(END!K3=3,5.5,IF(END!K3=4,Q6,IF(END!K3=1,Q6,\"\"))))","v":""},null,{"$f":"IF((ISNUMBER(Score!G7)),Score!G7,-1)","v":-1}]
["Co5","    Conduction"," \"No, ifs, ands, or buts\"","Correct=0, Error -1(except missing \"s's\")",{"$f":"IF(ISNUMBER(O8),O8,\"\")","v":""},null,"",{"$f":"IF(('Co5'!D16=\"\"),\"\", 'Co5'!D16)","v":""},null,null,null,null,null,1,{"$f":"IF($N$8=1,\"\",IF($N$8>1,$N$8-2,\"\"))","v":""}]
["Co6","    Orientation","Month, Year, Age","All correct or unable to respond=0, 2 correct=1,    1 correct=2, none correct=3",{"$f":"IF(ISNUMBER(O9),O9,\"\")","v":""},null,"",{"$f":"IF(('Co6'!D20=\"\"),\"\", 'Co6'!D20)","v":""},null,{"$f":"IF((G9=\"\"),0,G9)","v":0},null,null,null,1,{"$f":"IF($N$9=\"\",\"\",IF($N$9=1,\"\",IF($N$9>1,$N$9-2,\"\")))","v":""}]
["Co7","    Dysarthria","The ripe tast of cheese improves with   age","Dysarthria (.5), fails 1 word=1, more than one word=2",{"$f":"IF(ISNUMBER(O10),O10,\"\")","v":""},null,"",{"$f":"IF(('Co7'!D19=\"\"),\"\", 'Co7'!D19)","v":""},null,{"$f":"IF((G10=\"\"),0,G10)","v":0},null,null,null,1,{"$f":"IF(N10=1,\"\",IF(N10=2,0,IF(N10=3,0.5,IF(N10=4,1,IF(N10=5,2,\"\")))))","v":""},null,null,null,{"$f":"SUM(G4:G7)+G9","v":{"$error":"#VALUE!"}}]
[null,"Cranial",null,"Direct entry: enter into \"New\" &/or \"Old\"",null,null,{"$f":"SUM(G12:G14)","v":0}]
["Cr1","    Visual fields","Both eyes simultaneous, individual if          imperfect. Fingers or flashlight","Extinction only= 1, quadrant=1.5,  Quad+Extinc=2  Hemi=3   Bilat =4 ",{"$f":"IF(ISNUMBER(O12),O12,\"\")","v":""},null,{"$f":"IF(OR(ISNUMBER(E12),(ISNUMBER(F12))),E12+F12,\"\")","v":""},{"$f":"IF(('Cr1'!D19=\"\"),\"\", 'Cr1'!D19)","v":""},null,null,null,null,null,1,{"$f":"IF(N12=\"\",\"\",IF(N12=1,\"\",IF(N12=7,0,IF(N12=2,1,IF(N12=3,1.5,IF(N12=4,2,IF(N12=5,3,IF(N12=6,4,\"\"))))))))","v":""},null,"Date to text for pages","Conversion"]
["Cr2","    Gaze","Pursuit","Nl conj gaze wo pref=0, Nystag=1, 1 eye not Xing ML=2, Both eyes w a gaze palsy or no horiz mvmnt or strong gaze pref=3",{"$f":"IF(ISNUMBER(O13),O13,\"\")","v":""},null,{"$f":"IF(OR(ISNUMBER(E13),(ISNUMBER(F13))),E13+F13,\"\")","v":""},{"$f":"IF(('Cr2'!D22=\"\"),\"\", 'Cr2'!D22)","v":""},null,null,null,null,null,1,{"$f":"IF(N13=\"\",\"\",IF(N13=1,\"\",IF(N13=2,0,IF(N13=3,1,IF(N13=4,2,IF(N13=5,3,\"\"))))))","v":""},null,"NOW()","IF(ISNUMBER(G4),TEXT(Q13,\"mm/dd/yy-hh:mm\"),\"\")"]
["Cr3","   Facial Motor","Smile, upgaze to furrow brow","Nl=0, mild asym=.5, Mod lower face=1.               No mvmnt lower, or weak uppr&lwr=2",{"$f":"IF(ISNUMBER(O14),O14,\"\")","v":""},null,{"$f":"IF(OR(ISNUMBER(E14),(ISNUMBER(F14))),E14+F14,\"\")","v":""},{"$f":"IF(('Cr3'!D24=\"\"),\"\", 'Cr3'!D24)","v":""},null,null,null,null,null,1,{"$f":"IF(N14=\"\",\"\",IF(N14=1,\"\",IF(N14=2,0,IF(N14=3,0.5,IF(N14=4,1,IF(N14=5,2,\"\"))))))","v":""}]
[null,"Motor",null,"Direct entry: enter into \"New\" &/or \"Old\"",null,null,{"$f":"SUM(G16:G22)","v":0},null,"RH","RH","LH"]
["M1","    R arm","Extend arms 45 deg, supinated for 10\", if nl, R&L shldr=0, if not nl, test abn arm.","No pronator or drift=0, prntr&/or slow raise=.5 dnwd corrctd or 2/3 minor=1, net dnwd=1.5, touch bed=2, can't raise off bed=2.5, sl mvmnt=3, no mvmnt=4",{"$f":"IF(ISNUMBER(O16),O16,\"\")","v":""},null,{"$f":"IF(OR(ISNUMBER(E16),(ISNUMBER(F16))),E16+F16,\"\")","v":""},{"$f":"IF(('M1,2'!D24=\"\"),\"\", 'M1,2'!D24)","v":""},{"$f":"SUM(J26+K26)","v":0},null,null,{"$f":"IF(OR(I19=1,I20=2),1,2)","v":2},null,1,{"$f":"IF(N16=\"\",\"\",IF(N16=1,\"\",IF(N16=2,0,IF(N16=3,0.5,IF(N16=4,1,IF(N16=5,1,IF(N16=6,1.5,IF(N16=7,2,IF(N16=8,2.5,IF(N16=9,3,IF(N16=10,4,\"\")))))))))))","v":""}]
["M2","    R hand","Pt squeezes your 2nd & 3rd fingers,              simultaneously, if possible","Equal & nl=0. some pressure, weaker R=1,             no pressure R side=2","",null,"",{"$f":"IF(('M3,4'!D20=\"\"),\"\", 'M3,4'!D20)","v":""},null,null,null,null,null,1,{"$f":"IF(N17=\"\",\"\",IF(N17=1,\"\",IF(N17=2,0,IF(N17=4,1,IF(N17=3,2,\"\")))))","v":""}]
["M3","    L arm","Extend arms 45 deg, supinated for 10\", if nl, R&L shldr=0, if not nl, test abn arm.","No pronator or drift=0, prntr&/or slow raise=.5 dnwd corrctd or 2/3 minor=1, net dnwd=1.5, touch bed=2, can't raise off bed=2.5, sl mvmnt=3, no mvmnt=4","",null,"",{"$f":"IF(('M1,2'!D26=\"\"),\"\", 'M1,2'!D26)","v":""},{"$f":"SUM(L26+M26)","v":0},{"$f":"IF((I16>I18),TRUE,FALSE)","v":false},{"$f":"IF((I18>I16),TRUE,FALSE)","v":false},null,null,1,{"$f":"IF(N18=\"\",\"\",IF(N18=1,\"\",IF(N18=2,0,IF(N18=3,0.5,IF(N18=4,1,IF(N18=5,1,IF(N18=6,1.5,IF(N18=7,2,IF(N18=8,2.5,IF(N18=9,3,IF(N18=10,4,\"\")))))))))))","v":""}]
["M4","    L hand","Pt squeezes your 2nd & 3rd fingers,   shldr=0, if not nl, test abn arm. simultaneously, if possible         ","Equal & nl=0. some pressure, weaker L=1,             no pressure L side=2","",null,"",{"$f":"IF(('M3,4'!D23=\"\"),\"\", 'M3,4'!D23)","v":""},{"$f":"IF(OR(L19=1,M19=1),1)","v":false},{"$f":"IF(AND(J18=TRUE,AND(I16>1.5,I16<3)),TRUE)","v":false},{"$f":"IF(AND(K18=TRUE,AND(I18>1.5,I18<3)),TRUE)","v":false},{"$f":"IF(AND(K19=TRUE,E28=\"L\"),1)","v":false},{"$f":"IF(AND(J19=TRUE,E28=\"R\"),1)","v":false},1,{"$f":"IF(N19=\"\",\"\",IF(N19=1,\"\",IF(N19=2,0,IF(N19=3,1,IF(N19=4,2,\"\")))))","v":""}]
["M5","    R leg","30 deg for 5\"; if no drift, apply force","No drift and force nl=0, slow to raise or weaker=.5, net dnwd=1, touch bed=2, cannot get heel off bed=3, can only drag heel=4, little/no mvmnt=5",{"$f":"IF(ISNUMBER(O20),O20,\"\")","v":""},null,"",{"$f":"IF(('M5,6'!D22=\"\"),\"\", 'M5,6'!D22)","v":""},{"$f":"IF(OR(L20=2,M20=2),2)","v":false},{"$f":"IF(AND(J18=TRUE,I16>2),TRUE)","v":false},{"$f":"IF(AND(K18=TRUE,I18>2),TRUE)","v":false},{"$f":"IF(AND(K20=TRUE,E28=\"L\"),2)","v":false},{"$f":"IF(AND(J20=TRUE,E28=\"R\"),2)","v":false},1,{"$f":"IF(N20=\"\",\"\",IF(N20=1,\"\",IF(N20=2,0,IF(N20=3,0.5,IF(N20>3,N20-3,\"\")))))","v":""}]
["M6","    L leg","30 deg for 5\"; if no drift, apply force","No drift and force nl=0, slow to raise=.5, no drift, weaker=1, net dnwd=1.5, touch bed=2, cannot get heel off bed=3, can only drag heel=4, little/no mvmnt=5","",null,"",{"$f":"IF(('M5,6'!D24=\"\"),\"\", 'M5,6'!D24)","v":""},0,null,null,null,null,1,{"$f":"IF(N21=\"\",\"\",IF(N21=1,\"\",IF(N21=2,0,IF(N21=3,0.5,IF(N21>3,N21-3,\"\")))))","v":""}]
["M7","    Coordination","F-->N, H-->S","Nl=0, ataxia one limb=1, 2 limbs =2",{"$f":"IF(ISNUMBER(O22),O22,\"\")","v":""},null,"",{"$f":"IF(('M7'!D20=\"\"),\"\", 'M7'!D20)","v":""},"Handling null for UE motor:",null,null,null,null,1,{"$f":"IF(N22=\"\",\"\",IF(N22=1,\"\",IF(N22=2,0,IF(N22=3,1,IF(N22=4,2,\"\")))))","v":""}]
[null,"Sensory",null,"Direct entry: enter into \"New\" &/or \"Old\"",null,null,{"$f":"SUM(G24:G25)","v":0},null,null,"R arm","R hand","L arm","L hand"]
["S1","    Touch","Face, arm/hand, leg","Nl=0, Extncn only=.5, Dec >1 site=1,     Abs >1 site=2",{"$f":"IF(ISNUMBER(O24),O24,\"\")","v":""},null,{"$f":"IF(OR(ISNUMBER(E24),(ISNUMBER(F24))),E24+F24,\"\")","v":""},{"$f":"IF(('S1'!D25=\"\"),\"\", 'S1'!D25)","v":""},null,{"$f":"IF((G16=\"\"),0,FALSE)","v":0},{"$f":"IF((G17=\"\"),0,FALSE)","v":0},{"$f":"IF((G18=\"\"),0,FALSE)","v":0},{"$f":"IF((G19=\"\"),0,FALSE)","v":0},1,{"$f":"IF(N24=\"\",\"\",IF(N24=1,\"\",IF(N24=2,0,IF(N24=3,0.5,IF(N24=4,1,IF(N24=5,2,\"\"))))))","v":""}]
["S2","    Pin","face, arm, leg. Percent difference","No diff=0, at any site % diff <25%=.5, 25%-75%=1,  >75%=2",{"$f":"IF(ISNUMBER(O25),O25,\"\")","v":""},null,{"$f":"IF(OR(ISNUMBER(E25),(ISNUMBER(F25))),E25+F25,\"\")","v":""},{"$f":"IF(('S2'!D17=\"\"),\"\", 'S2'!D17)","v":""},null,{"$f":"IF(J24=FALSE,G16)","v":false},{"$f":"IF(K24=FALSE,G17)","v":false},{"$f":"IF(L24=FALSE,G18)","v":false},{"$f":"IF(M24=FALSE,G19)","v":false},1,{"$f":"IF(N25=\"\",\"\",IF(N25=1,\"\",IF(N25=2,0,IF(N25=3,0.5,IF(N25=4,1,IF(N25=5,2,\"\"))))))","v":""}]
[null,null,null,null,null,null,null,null,"G equiv",{"$f":"MAX(J24,J25)","v":0},{"$f":"MAX(K24,K25)","v":0},{"$f":"MAX(L24,L25)","v":0},{"$f":"MAX(M24,M25)","v":0}]
[null,null,null,"Total"," "," ",{"$f":"SUM(G3+G11+G15+G23)","v":0}]
[null,"Dominant Hand","Note \"R\", \"L\", \"A\" for ambidextrous, or \"Unk\" if unknown ",null,{"$f":"O28","v":""},null,null,{"$f":"IF(NOT(OR(E28=\"L\",E28=\"R\", E28=\"A\",E28=\"l\",E28=\"r\",E28=\"a\")),\"Handedness to be entered\",\"\")","v":"Handedness to be entered"},null,null,null,null,null,5,{"$f":"IF(N28=\"\",\"\",IF(N28=1,\"R\",IF(N28=2,\"L\",IF(N28=3,\"A\",IF(N28=4,\"Unk\",IF(N28=5,\"\",\"\"))))))","v":""}]
[null,null,"Dom score 1-2=1, >2=2",null,null,null,{"$f":"MAX(I19:I20)","v":0},"Automatic calculation","To mimic NIHSS"]
[null,null,null,"Nearly absent pin in both feet, add 1",null,null,{"$f":"IF(ISNUMBER(O30),O30,\"\")","v":0},"Enter if manual entry and present","RUE",{"$f":"IF((G16=0.5),0,J31)","v":0},null,"RLE",{"$f":"IF((G20=0.5),0,M31)","v":{"$error":"#VALUE!"}},3,{"$f":"IF(N30=\"\",\"\",IF(N30=3,0,IF(N30=2,1,IF(N30=1,0,\"\"))))","v":0}]
["Last NIHSS:Score, Date, Time:",null,null,"Total Adjusted LATS score",null,null,{"$f":"G27+G29+O30","v":0},null,null,{"$f":"IF((G16=\"\"),0,G16)","v":0},null,null,{"$f":"IF((G20>=4),G20-1,M32)","v":{"$error":"#VALUE!"}}]
[null,null,"LATS score to predict 90 day function wo/w adjustment",null,null,null,{"$f":"MROUND(O32,1)","v":0},{"$f":"SUM(G32+G29+G30)&\"  adjusted\"","v":"0  adjusted"},"LUE",{"$f":"IF((G16=0.5),0,J33)","v":0},null,null,{"$f":"IF((G20=\"\"),0,G20)","v":0},null,{"$f":"SUM(J6*0.5,+J7+J9+J10+G11+G15+G23)","v":0},null,null,"For G33","For H33","Fluency*.5 +naming +orientation +dysarthria +cranial + motor +sensory - deletes receptive"]
[null,null,"LATS, calc NIHSS equiv to predict 90 day function wo/w adjustment",null,null,null,{"$f":"IF(ISNUMBER(R33),R33,\"\")","v":""},{"$f":"IF(ISNUMBER(S33),S33,\"\")&\"  adjusted\"","v":"  adjusted"},null,{"$f":"IF((G18=\"\"),0,G18)","v":0},null,"LLE",{"$f":"IF((G21=0.5),0,M34)","v":{"$error":"#VALUE!"}},null,{"$f":"SUM(J6*0.5,+J7+J9+J10+G11+J30+J32+M30+M33+G23)","v":{"$error":"#VALUE!"}},null,null,{"$f":"MROUND(O33,1)","v":{"$error":"#VALUE!"}},{"$f":"G33+G29+G30","v":{"$error":"#VALUE!"}},"Fluency*.5 +naming +orientation +dysarthria +cranial + R arm + L arm, slightly depreciated leg strength + seensory - deletes receptive"]
["AMB","   Ambulation","Not scored=0, Normal=0.2, device=1, wlkr ind=2, Wlkr w assist=3, Assist 2 xfer &/or  support to walk=4, Max assist=5",null,{"$f":"AMB!L9","v":""},null,{"$f":"IF(OR(ISNUMBER(E34),(ISNUMBER(F34))),E34+F34,\"\")","v":""},{"$f":"IF((AMB!D23=\"\"),\"\", AMB!D23)","v":""},null,null,null,null,{"$f":"IF((G21>=4),G21-1,M35)","v":{"$error":"#VALUE!"}}]
[null,{"$f":"\"Best Eye: \"&LGCS!I4","v":"Best Eye: "},{"$f":"\"Best Verbal:  \"&LGCS!I14&\"    Best Motor: \"&LGCS!I26","v":"Best Verbal:      Best Motor: "},{"$f":"\"  Asymmetry Score:  \"&LGCS!H38&\"           |   LGCS Total :\"","v":"  Asymmetry Score:             |   LGCS Total :"},null,null,{"$f":"LGCS!H40","v":""},null,null,null,null,null,{"$f":"IF((G21=\"\"),0,G21)","v":0},{"$f":"LGCS!$I$44","v":""},{"$f":"IF(ISNUMBER(N35),N35,\"\")","v":""}]

{"sheet":"LGCS","index":21,"n_rows":44,"n_cols":15,"rows_kept":44,"cut":false,"hidden":false,"merged":[[39,4,39,6]]}
["MRN ",{"$f":"IF((Info!D17=\"\"),\"\",Info!D17)","v":""},"Examiner ",{"$f":"IF((Info!D15=\"\"),\"\",Info!D15)","v":""},"Age/Sex",{"$f":"(IF((Info!D18=\"\"),\"\",Info!D18)&\"   \"&(IF((Info!D19=\"\"),\"\",Info!D19)))","v":"   "},"Date/Time",{"$f":"Score!H1","v":"08/30/20-16:49"}]
["Diminished LOC LATS",null,null,"LGCS"]
[null,null,null,null,null,null,null,null,"Score"]
[null,"Best Eye Response",null,null,null,null,null,null,{"$f":"IF(K4=1,\"\",IF(K4=2,3,IF(K4=3,6,IF(K4=4,9,IF(K4=5,12,\"\")))))","v":""},null,1]
[null,null,null,null,null,null,null,null,null,null,null,null,null,null,{"$f":"H1","v":"08/30/20-16:49"}]
[]
[null,null,null,null,null," =3"]
[null,null,null,null,null," =6"]
[null,null,null,null,null," =9"]
[null,null,null,null,null," =12"]
[]
[null,"Best Verbal Response"]
[]
[null,null,null,null,null,null,null,null,{"$f":"IF(K14=1,\"\",IF(K14=2,3,IF(K14=3,6,IF(K14=4,9,IF(K14=5,12,IF(K14=6,15,\"\"))))))","v":""},null,1]
[]
[]
[null,null,null,null,null," =3"]
[null,null,null,null,null," =6"]
[null,null,null,null,null," =9"]
[null,null,null,null,null," =12"]
[null,null,null,null,null," =15"]
[]
[null,"Best Motor Response"]
[]
[]
[null,null,null,null,null,null,null,null,{"$f":"IF(K26=1,\"\",IF(K26=2,3,IF(K26=3,6,IF(K26=4,9,IF(K26=5,12,IF(K26=6,15,IF(K26=7,18,\"\")))))))","v":""},null,1]
[]
[null,null,null,null,null," =3"]
[null,null,null,null,null," =6"]
[null,null,null,null,null," =9"]
[null,null,null,null,null," =12"]
[null,null,null,null,null," =15"]
[null,null,null,null,null," =18"]
[]
[null,"Focal ","Are there obvious asymmetries?",null,null,null,null,null,null,null,null,null,null,null,{"$f":"H1","v":"08/30/20-16:49"}]
[null,"     For example, eyes deviated to one side, or, asym of spont mvmnt or posturing."]
[]
[null,null,null,null,null,null,"yes=10",{"$f":"IF(K39=1,\"\",IF(K39=2,0,IF(K39=3,10,\"\")))","v":""}]
[null,null,null,null,null,null,null,null,null,null,1,null,"LGCS ToTal "]
[null,null,null,null,"           Total LGCS LATS score: ",null,null,{"$f":"IF(ISNUMBER(M40),M40,\"\")","v":""},null,null,null,null,{"$f":"SUM(I4+I14+I26+H38)","v":{"$error":"#VALUE!"}}]
[null,null,{"$f":"IF(ISNUMBER(H40),\"Completed -Click on 'To END'\",\"NOT COMPLETED, SCORE ALL ITEMS\")","v":"NOT COMPLETED, SCORE ALL ITEMS"}]
[]
[]
[null,null,null,null,null,null,null,null,{"$f":"IF(ISNUMBER(K44),K44,\"\")","v":""}]

{"sheet":"END","index":22,"n_rows":95,"n_cols":18,"rows_kept":95,"cut":false,"hidden":false,"merged":[[2,0,2,1],[1,0,1,1],[25,7,25,8],[20,8,20,9],[22,7,22,8],[22,5,22,6],[23,7,23,8],[20,5,20,6],[24,7,24,8],[8,2,8,10],[9,2,9,10]]}
["END",null,null,null,"Final Touchups"]
["         FINAL"]
["   1. Adjust Scores:",null,{"$f":"IF(ISNUMBER(LGCS!I44),\"\",\"If any previously existing impairments have impacted the score, Click 'To Scores' below:\")","v":"If any previously existing impairments have impacted the score, Click 'To Scores' below:"},null,null,null,null,null,null,null,1]
[null,null,{"$f":"IF(ISNUMBER(LGCS!I44),\"\",\"and divide the total for each affected score into new and old; the total itself should not change.\")","v":"and divide the total for each affected score into new and old; the total itself should not change."},null,null,null,null,null,null,null,null,null,"Name,MRN",{"$f":"Info!D15&\"_\"&Info!D17","v":"_"}]
[null,"Research: You must go to score page to complete Line 34, NIHSS data. ",null,null,null,null,null,null,null,null,null,null,"Date",2008301650,{"$f":"NOW()","v":"2020-09-03T16:48:59.760"}]
[null,"2. To review results graphically: Click on \"To Graph\"",null,null,null,null,null,null,null,null,null,null,"Date final","200830-1650",{"$f":"TEXT(O5,\"yymmdd-hhmm\")","v":"200903-1649"}]
[null,null,null,null,null,null,null,null,null,null,null,null,"Filename",{"$f":"Info!D17&\"_\"&N6&\"_\"&Info!D15","v":"_200830-1650_"}]
[null,"     3. Finish:","To SAVE this file:  ",null,null,null,null,null,null,null,null,null,"Name for file:","12334_200422-1950_Paul A"]
[null,null,"Click on \"END\" here. Then choose survey or not. You will then be taken to the survey,"]
[null,null," or, the score page will be saved in the same folder as the questionnaire."]
[null,null,null,null,null,null,null,null,null,null,null,null,1]
[null,null,null,null,null,null,null,null,null,null,null,null,null,"Date to text for pages","Conversion"]
[null,null,null,null,null,null,null,null,null,null,null,null,null,"=NOW()' in N13",{"$f":"IF(ISNUMBER(O14),TEXT(N13,\"mm/dd/yy-hh:mm\"),\"\")","v":""}]
[]
[]
[null,null,null,null,null,null,null,null,null,null,null,null,null,{"$f":"Score!H1","v":"08/30/20-16:49"},{"$f":"IF(OR(ISNUMBER(O14),ISNUMBER(Score!G4)),TEXT(N13,\"mm/dd/yy-hh:mm\"),\"\")","v":""}]
[null,null,null,null,null,null,null,null,null,null,null,null,null,{"$f":"MID(N16,7,2)&LEFT(N16,2)&MID(N16,4,2)&MID(N16,9,3)&RIGHT(N16,2)","v":"200830-1649"}]
[null,null,null,null,null,null,null,null,null,null,null,null,null,{"$f":"Info!D17&\"_\"&N17&\"_\"&Info!D15","v":"_200830-1649_"},{"$f":"O18","v":0}]
[]
[]
[null,null,null,null,null,"To Scores",null,null,"To Graph"]
[]
[null,null,null,null,null,"Or, click to:"]
[]
[null,null,null,null,null,null,null,"(Almost)"]
[null,null,null,null,null,null,null,"Sheets21:Button8"]
[]
[]
[]
[null,null,null,null,null,null,null,null,null,null,null,null,null,null,null,null,null," "]
[]
[]
[]
[]
[]
[]
[]
[]
[]
[]
[]
[]
[]
[]
[]
[]
[null,null,"      In the first 5 communication items, there was no evidence of communication.  Has the patient"]
[null,null,null," been able to communicate anything by any means at any time.? "]
[]
[]
[]
[]
[]
[]
[]
[]
[]
[]
[]
[]
[]
[]
[]
[]
[]
[]
[]
[]
[]
[]
[]
[]
[]
[]
[]
[]
[]
[]
[]
[]
[]
[]
[]
[]
[]
[]
[]
[]
[]
[]
[]
["   Are you able to complete a brief 5 question survey "]
[null,"        reflecting your experience with LATS?"]
[]
[null,"And, thank you for administering this test."]

{"sheet":"Graph","index":23,"n_rows":44,"n_cols":47,"rows_kept":44,"cut":false,"hidden":false,"merged":[[45,17,46,18],[38,16,38,17],[43,15,43,17]]}
[]
[]
[null,null,null,null,null,null,null,null,null,null,null,null,null,null,null,null,null,null,null,null,null,null,null,null,null,"Receptive1","ReceptiveMime","Fluency","Naming","Conduction","Orientation","Dysarthria","Fields","Gaze","Facial","R arm","R hand","L arm","L hand","R leg","L leg","Coord","Touch","Sharp","Ambulation*"]
[null,null,null,null,null,null,null,null,null,null,null,null,null,null,null,null,null,null,null,null,null,null,null,null,"Old",{"$f":"Score!F4","v":0},{"$f":"Score!F5","v":0},{"$f":"Score!F6","v":0},{"$f":"Score!F7","v":0},{"$f":"Score!F8","v":0},{"$f":"Score!F9","v":0},{"$f":"Score!F10","v":0},{"$f":"Score!F12","v":0},{"$f":"Score!F13","v":0},{"$f":"Score!F14","v":0},{"$f":"Score!F16","v":0},{"$f":"Score!F17","v":0},{"$f":"Score!F18","v":0},{"$f":"Score!F19","v":0},{"$f":"Score!F20","v":0},{"$f":"Score!F21","v":0},{"$f":"Score!F22","v":0},{"$f":"Score!F24","v":0},{"$f":"Score!F25","v":0},{"$f":"Score!$F$34","v":0}]
[null,null,null,null,null,null,null,null,null,null,null,null,null,null,null,null,null,null,null,null,null,null,null,null,"New",{"$f":"Score!E4","v":""},{"$f":"Score!E5","v":""},{"$f":"Score!E6","v":""},{"$f":"Score!E7","v":""},{"$f":"Score!E8","v":""},{"$f":"Score!E9","v":""},{"$f":"Score!E10","v":""},{"$f":"Score!E12","v":""},{"$f":"Score!E13","v":""},{"$f":"Score!E14","v":""},{"$f":"Score!E16","v":""},{"$f":"Score!E17","v":""},{"$f":"Score!E18","v":""},{"$f":"Score!E19","v":""},{"$f":"Score!E20","v":""},{"$f":"Score!E21","v":""},{"$f":"Score!E22","v":""},{"$f":"Score!E24","v":""},{"$f":"Score!E25","v":""},{"$f":"Score!$E$34","v":""},null,{"$f":"SUM(Z5:AR5)","v":0}]
[]
[]
[]
[]
[null,null,null,null,null,"MRN ",{"$f":"Info!D17","v":0},null,null,null,null,null,null,null,{"$f":"IF(AND(O10=\"\",NOT(AU5=0)), NOW(),\"\")","v":""}]
[null,null,null,null,null,null,null,null,null,null,null,null,null,null,null,null,null,null,null,null,null,null,null,null,"Communication","Cranial","Motor","Sensory"]
[null,null,null,null,null,null,null,null,null,null,null,null,null,null,null,null,null,null,null,null,null,null,null,null,{"$f":"Score!G3","v":0},{"$f":"Score!G11","v":0},{"$f":"Score!G15","v":0},{"$f":"Score!G23","v":0}]
[]
[]
[]
[null,null,null,null,null,null,null,null,null,null,null,null,null,null,null,null,null,null,null,null,null,null,null,"Column1","Column2","Column3","Column4"]
[null,null,null,null,null,null,null,null,null,null,null,null,null,null,null,null,null,null,null,null,null,null,null,null,"\"NIHSS\"","LATS","Adjusted LATS"]
[null,null,null,null,null,null,null,null,null,null,null,null,null,null,null,null,null,null,null,null,null,null,null,"\" \"",{"$f":"Y21","v":""},{"$f":"Score!G27","v":0},{"$f":"Score!G31","v":0}]
[]
[]
[null,null,null,null,null,null,null,null,null,null,null,null,null,null,null,null,null,null,null,null,null,null,null,null,{"$f":"IF(ISNUMBER(Score!$G$33),Score!$G$33,\"\")","v":""}]
[]
[]
[]
[]
[]
[]
[]
[]
[]
[]
[]
[]
[]
[]
[]
[null,null,null,null,null,"* Ambulation score is not included  in totals"]
[null,null,null,null,null,"\"NIHSS\" is a converted approximation"]
[null,null,null,null,null,null,null,null,null,null,null,null,null,null,null,null,"Return to \"END\""]
[]
[]
[]
[]
[null,null,null,null,null,null,null,null,null,null,null,null,null,null,null,"Example of 2 test display"]

{"sheet":"Sample","index":24,"n_rows":77,"n_cols":11,"rows_kept":77,"cut":false,"hidden":false,"merged":[[2,0,2,7],[58,1,58,2],[74,1,74,2],[13,0,13,6],[15,0,15,6],[30,6,30,7],[66,1,66,5],[23,0,23,6],[24,0,24,6],[25,0,25,6],[37,0,37,6]]}
["Sample scoring for the 20\" description - half this information would be excellent."]
[]
["This is a beach scene. The scene shows a family at an ocean beach. The puppy"]
["                         1              2                                      3                  4                           5                                        6"]
["is stealing food from the picnic basket. The father is negligently hanging onto"]
["            7               8                                  9          10                      11                      12                     13"]
["the leash while watching the mother and son playing catch with a beachball. "]
["            14                            15                         16                     17           18          19                         20"]
["A small sloop is sailing nearby while the helmsman is anxiously assessing a"]
["          21         22            23             24                                        25                         26                   27"]
["stalking shark. An umbrella shades the blanket and the irresponsible dad. "]
["       28            29                     30               31                        32                                        33                34"]
["A pair of sandals lies in the sand while a crustacean threatens the boy's "]
["       35             36             37                     38                                39                     40                       41"]
["sandcastle.  It's a sunny day with some scattered clouds. "]
["          42                               43         44                 45             46                47"]
[]
[]
["Note that duplicate words are scored only once."]
[]
["Second  sample:"]
[]
["Man…woman …. Boy throwing ball…. Dog . . . . eating.  Oh, I don't know. "]
["    1               2                     3                4                5         6                       7                                         "]
["Good ..time … boat. "]
["    10          11            12"]
[]
["Note: There is enough here to say the speech is telegraphic "]
["          (though not necessarily due to a specific conduction defect). "]
[]
[null,null,null,null,null,null,"Return to \"Fluency\""]
[]
[]
[]
[]
[]
["."]
["               Choosing standard LATS or \"Dec LOC\"(LGCS)  LATS"]
[null,"This would be considered for patients who would score a \"2\" or \"3\" on Item 1A of the NIHSS"]
[null,"Choosing LGCS (Diminished LOC)"]
[null,"1.  ","a. Neither side responds to visual stimuli - light and threat (take care "]
[null,null,null,"not to touch the lid). IF this is negative or indeterminant, THEN"]
[null,"AND","b. No visual (ocular) orientation to either sight or sound"]
[]
[null,null,null,null,"OR"]
[]
[null,"2.  ","a Neither side shows a response to strong pinch."]
[null,null,"    Responses can be:"]
[null,null,null,"1. Change in facial expression"]
[null,null,null,"2. At least a semipurposeful withdrawal from the stimulus (not posturing)"]
[]
[null,"Explanation: These criteria, as a threshold, do favor using the standard LATS over the LGCS. The reason is that should "]
[null,null,"the patient improve, incremental improvement can be seen on our output graphic displays."]
[null,null,"Note though that patients can be transitioned from the LGCS to the standard. "]
[null,null,"If the standard LATS is chosen, severely impaired patients will likely have a "]
[null,null,"communications score of 16 or 17."]
[]
[]
[null,"Visual Fields"]
[]
[null,"1.  "," For the non-communicative patient, no response to stimulus on one side is considered a hemianopsia"]
[null,"2.  ","Alerrt patients are not infrequently inconsistent. Persist with different stimulation techniques."]
[]
[]
[]
[]
[null,"Motor (tips) for the very impaired patient"]
[null,null,"Arms: Raise either arm and look for asymmetry. If one arm sort of stays up  and the other drops "]
[null,null,"immediately, the score for the arm that drops is a 4, and the hand score on that side is a 1."]
[null,null,null,"If both arms sort of stay up, but one comes down faster, the one that drops faster is "]
[null,null,"scored a 2 and the hand is scored a 0."]
[]
[null,null,"Legs: As arms above (except hand score is not impacted). "]
[null,null,null,null,null,null,null,null,null,"  ","."]
[null,"Sensory (tips)"]
[null,null,"If there is no response to pinch in both limbs of one side, touch is scored a 2 and sharp is a 2",null,null,null,null,null,null,null,"."]
[null,null,null,"Any other asymmetry, in the absence of more specific communication,  is scored a 1 for each. "]

{"sheet":"Survey","index":25,"n_rows":30,"n_cols":25,"rows_kept":30,"cut":false,"hidden":false,"merged":[[29,7,29,16],[28,16,28,17],[1,5,1,6],[3,9,3,15],[24,2,24,9],[21,16,22,19],[26,16,26,17],[26,10,26,13],[26,1,26,9]]}
[]
[null,"LATS Survey",null,null,null,"             Your name: ",null,{"$f":"A1","v":0},null,null,null,null,null,"Date:",{"$f":"Score!H1","v":"08/30/20-16:49"}]
[null,null,null,null,null,null,null,null,null,null,null,null,null,null,null,null,null,null,null,null,null,null,"Name",{"$f":"Info!D15","v":0}]
[null,"Approximate number of times you have administered the LATS",null,null,null,null,null,null,null,"once          1-3          4-8         9-15       >15",null,null,null,null,null,null,null,null,null,null,null,null,"MRN",{"$f":"Info!D17","v":0}]
[null,null,null,null,null,null,null,null,null,null,null,null,null,null,null,null,null,null,null,null,null,null,"Date",2004082023]
[null,null,null,null,null,null,null,null,null,"Very    inefficient","Inefficient","Neutral","Efficient","Very efficient",null,null,null,null,null,null,null,null,"Date final",{"$f":"END!N17","v":"200830-1649"}]
[null," 1. How efficient/easy to use is it for you to administer this test?",null,null,null,null,null,null,null,null,null,null,null,null,null,null,null,null,null,null,null,null,"Filename",{"$f":"Info!D17&\"_\"&X6&\"_\"&Info!D15","v":"_200830-1649_"}]
[null,null,null,null,"Compared to administering  the NIHSS:",null,null,null,"LATS is:","Much harder","Harder","About same","Easier","Much easier",null,null,null,null,null,null,null,null,"Name for file:"]
[]
[null," 2. How accurate an assessment of impairment does the LATS convey?",null,null,null,null,null,null,null,"Highly inaccurate","Inaccurate","Reasonable","Accurate","Highly accurate",null,null,null,null,null,null,null,null,"Name for survery file: ",null,{"$f":"\"Survey_\"& X6 &\"_\"& Info!D15 &\"_\"&Info!D17","v":"Survey_200830-1649__"}]
[null,null,null,null,null,"Compared to the NIHSS:",null,null,"LATS is:","Much more inaccurate","More inaccurate","About same","More accurate","Much more accurate"]
[]
[null," 3. How likely is it that somebody else would get the same scores as you?",null,null,null,null,null,null,null,"Very unlikely","Unlikely","Maybe","Likely","Very likely"]
[]
[null,null,null,null,null,"Compared to the NIHSS:",null,null,"LATS is:","Much less likely to match","Less likely to match","About same","More likely to match","Much more likely match"]
[]
[null," 4. Given no prior stroke scale experience, and provision of an instructional video:",null,null,null,null,null,null,null,"> 4 hours","3+ - 4 hours","2+ - 3 hours","1+ - 2 hours","< 1 hour"]
[null,null,"Time it should it take to learn the LATS and be able to administer it"]
[null,null,null,null,"Learning effort compared to the NIHSS:",null,null,null,"LATS is:","Much harder","Harder","About same","Easier","Much easier"]
[]
[null,null,null,null,null,null,null,null,null,"Very bad","Bad","Middlin'","Good","Very good"]
[null," 5. Your overall impression of LATS:",null,null,null,null,null,null,null,null,null,null,null,null,null,null,{"$f":"IF(SrvyRes!E17>1, \"Thank you so much for your participation!\",\"\")","v":""}]
[null,null,null,null,null,"Which test would you rather use? ",null,null,null,"\"++NIHSS\"","NIHSS","Either","LATS","\"++LATS\""]
[]
[null,"Comments:"]
[]
[null,"                   Given that there were time,  would you be interested in sharing your thoughts personally? "]
[]
[]
[null,null,null,null,{"$f":"IF(SrvyRes!E17=2, \"   Contact Information:\",\"\")","v":""},null,null,{"$f":"IF(SrvyRes!E17=2, \"______________________________________________________________________________________:\",\"\")","v":""}]

{"sheet":"SrvyRes","index":26,"n_rows":20,"n_cols":6,"rows_kept":20,"cut":false,"hidden":false,"merged":[[17,1,17,2]]}
[]
[null,{"$f":"Info!D15","v":0},{"$f":"Score!H1","v":"08/30/20-16:49"},null,"Raw scores","Adapted score"]
[null,"(Experience) How many times?",{"$f":"F3","v":""},null,1,{"$f":"IF(E3=1,\"\",IF(E3=2,1,IF(E3=3,2,IF(E3=4,6,IF(E3=5,12,IF(E3=6,20,\"\"))))))","v":""}]
[null,"Ease of use",{"$f":"F4","v":""},null,1,{"$f":"IF(E4=1,\"\",IF(E4>1,E4-4,\"\"))","v":""}]
[null,"Accuracy",{"$f":"F5","v":""},null,1,{"$f":"IF(E5=1,\"\",IF(E5>1,E5-4,\"\"))","v":""}]
[null,"Reproducibility","",null,1,{"$f":"IF(E6=1,\"\",IF(E6>1,E6-4,\"\"))","v":""}]
[null,"Ease of learning","",null,1,{"$f":"IF(E7=1,\"\",IF(E7>1,E7-4,\"\"))","v":""}]
[null,"Overall","",null,1,{"$f":"IF(E8=1,\"\",IF(E8>1,E8-4,\"\"))","v":""}]
[null,"Subtotal",0,null,null,{"$f":"SUM(F4:F8)","v":0}]
[null,"Compare ease of use","",null,1,{"$f":"IF(E10=1,\"\",IF(E10>1,E10-4,\"\"))","v":""}]
[null,"Compare accuracy","",null,1,{"$f":"IF(E11=1,\"\",IF(E11>1,E11-4,\"\"))","v":""}]
[null,"Compare reproducibility","",null,1,{"$f":"IF(E12=1,\"\",IF(E12>1,E12-4,\"\"))","v":""}]
[null,"Compare ease of learning","",null,1,{"$f":"IF(E13=1,\"\",IF(E13>1,E13-4,\"\"))","v":""}]
[null,"Compare overall","",null,1,{"$f":"IF(E14=1,\"\",IF(E14>1,E14-4,\"\"))","v":""}]
[null,"Subtotal",0,null,null,{"$f":"SUM(F10:F14)","v":0}]
[null,"Total",0,null,null,{"$f":"F9+F15","v":0}]
[null,"Williing to be interviewed? ",{"$f":"IF(E17=2,\"Yes\",IF(E17=3,\"No\",IF(E17=1,\"\",\"\")))","v":""},null,1]
[]
[]
[{"$f":"(Survey!H30)","v":""}]

{"sheet":"2-test","index":27,"n_rows":44,"n_cols":14,"rows_kept":44,"cut":false,"hidden":false,"merged":[[43,13,43,15]]}
[]
[]
[]
[]
[]
[]
[]
[]
[]
[]
[]
[]
[]
[]
[]
[]
[]
[]
[]
[]
[]
[]
[]
[]
[]
[]
[]
[]
[]
[]
[]
[]
[]
[]
[null,null,null,null,null,null,null,"Example of 2 test display "]
[]
[]
[]
[]
[]
[]
[]
[]
[null,null,null,null,null,null,null,null,null,null,null,null,null,"Back to \"Graph\""]